[Event "*** Titled Tuesday Blitz"]
[Site "Chess.com"]
[Date "2020.04.07"]
[Round "6"]
[White "Ariadna_Atreides"]
[Black "zmeeed67"]
[Result "0-1"]
[WhiteElo "2044"]
[BlackElo "2381"]
[TimeControl "180+1"]
[EndTime "14:06:30 PDT"]
[Termination "zmeeed67 won on time"]

1. d4 {[%clk 0:02:59.8]} 1... d5 {[%clk 0:02:54.9]} 2. Nf3 {[%clk 0:02:59.3]}
2... Nf6 {[%clk 0:02:54.4]} 3. c4 {[%clk 0:02:56.2]} 3... e6 {[%clk 0:02:54.6]}
4. e3 {[%clk 0:02:55.5]} 4... c5 {[%clk 0:02:53.5]} 5. Nc3 {[%clk 0:02:52.6]}
5... Nc6 {[%clk 0:02:53.8]} 6. cxd5 {[%clk 0:02:52.4]} 6... exd5 {[%clk
0:02:51.7]} 7. Bb5 {[%clk 0:02:49.6]} 7... a6 {[%clk 0:02:49.1]} 8. Bxc6+ {[%clk
0:02:43.9]} 8... bxc6 {[%clk 0:02:50]} 9. O-O {[%clk 0:02:42.9]} 9... Bg4 {[%clk
0:02:42.7]} 10. Qa4 {[%clk 0:02:40.7]} 10... Qc7 {[%clk 0:02:30.8]} 11. Ne5
{[%clk 0:02:39.6]} 11... Bd7 {[%clk 0:02:30.7]} 12. Nxd7 {[%clk 0:02:32.4]}
12... Qxd7 {[%clk 0:02:28.7]} 13. Re1 {[%clk 0:02:19.8]} 13... Be7 {[%clk
0:02:27.3]} 14. e4 {[%clk 0:02:12.4]} 14... cxd4 {[%clk 0:02:17.1]} 15. Qxd4
{[%clk 0:02:07.7]} 15... c5 {[%clk 0:02:11.8]} 16. Qe5 {[%clk 0:02:01.7]} 16...
d4 {[%clk 0:02:00.9]} 17. Nd5 {[%clk 0:02:00]} 17... Nxd5 {[%clk 0:01:55.2]} 18.
exd5 {[%clk 0:01:59.8]} 18... O-O {[%clk 0:01:55.1]} 19. Bg5 {[%clk 0:00:30.1]}
19... Bxg5 {[%clk 0:01:50.4]} 20. Qxg5 {[%clk 0:00:29.8]} 20... Rfd8 {[%clk
0:01:47.1]} 21. Rac1 {[%clk 0:00:25.9]} 21... Rac8 {[%clk 0:01:39.7]} 22. h4
{[%clk 0:00:15.4]} 22... Qxd5 {[%clk 0:01:31.7]} 23. Re8+ {[%clk 0:00:13.7]}
23... Rxe8 {[%clk 0:01:30.8]} 24. Qxd5 {[%clk 0:00:14.1]} 24... Red8 {[%clk
0:01:29.4]} 25. Qg5 {[%clk 0:00:11.9]} 25... h6 {[%clk 0:01:28.3]} 26. Qd2
{[%clk 0:00:10.4]} 26... Rd5 {[%clk 0:01:25.4]} 27. b3 {[%clk 0:00:08.9]} 27...
d3 {[%clk 0:01:21.9]} 28. Rc3 {[%clk 0:00:07.8]} 28... Rcd8 {[%clk 0:01:22.3]}
29. a3 {[%clk 0:00:06.7]} 29... f6 {[%clk 0:01:22.5]} 30. b4 {[%clk 0:00:06.3]}
30... cxb4 {[%clk 0:01:23.2]} 31. axb4 {[%clk 0:00:06.1]} 31... Kf7 {[%clk
0:01:24.1]} 32. f3 {[%clk 0:00:04.9]} 32... Rd4 {[%clk 0:01:24.3]} 33. Rc7+
{[%clk 0:00:04]} 33... Kf8 {[%clk 0:01:22.7]} 0-1

[Event "*** Titled Tuesday Blitz"]
[Site "Chess.com"]
[Date "2020.04.07"]
[Round "6"]
[White "Etoilegeniale"]
[Black "chiwii"]
[Result "1-0"]
[WhiteElo "2509"]
[BlackElo "2245"]
[TimeControl "180+1"]
[EndTime "14:06:38 PDT"]
[Termination "Etoilegeniale won by resignation"]

1. e4 {[%clk 0:03:00.9]} 1... c5 {[%clk 0:02:45.1]} 2. Nf3 {[%clk 0:02:59.8]}
2... e6 {[%clk 0:02:45]} 3. c3 {[%clk 0:02:59.3]} 3... d5 {[%clk 0:02:40.8]} 4.
exd5 {[%clk 0:02:58.7]} 4... exd5 {[%clk 0:02:38.4]} 5. d4 {[%clk 0:02:57.6]}
5... Nf6 {[%clk 0:02:36.8]} 6. Bb5+ {[%clk 0:02:56]} 6... Bd7 {[%clk 0:02:34]}
7. Bxd7+ {[%clk 0:02:55.4]} 7... Nbxd7 {[%clk 0:02:34.3]} 8. O-O {[%clk
0:02:55.3]} 8... Be7 {[%clk 0:02:34.5]} 9. dxc5 {[%clk 0:02:54]} 9... Nxc5
{[%clk 0:02:34.4]} 10. Re1 {[%clk 0:02:53.2]} 10... Ne6 {[%clk 0:02:34.4]} 11.
Nbd2 {[%clk 0:02:52.6]} 11... O-O {[%clk 0:02:34.4]} 12. Nb3 {[%clk 0:02:47.7]}
12... Rc8 {[%clk 0:02:33.7]} 13. Nbd4 {[%clk 0:02:45.8]} 13... Nc5 {[%clk
0:02:28]} 14. Nf5 {[%clk 0:02:37.2]} 14... Re8 {[%clk 0:02:28.3]} 15. Bg5 {[%clk
0:02:32.3]} 15... Nce4 {[%clk 0:02:27.7]} 16. Nxe7+ {[%clk 0:02:23.7]} 16...
Rxe7 {[%clk 0:02:27.8]} 17. Bxf6 {[%clk 0:02:22.6]} 17... Nxf6 {[%clk
0:02:28.7]} 18. Nd4 {[%clk 0:02:17.7]} 18... Re4 {[%clk 0:02:16.1]} 19. f3
{[%clk 0:02:15.2]} 19... Rh4 {[%clk 0:02:14.4]} 20. Nf5 {[%clk 0:02:08.4]} 20...
Rh5 {[%clk 0:02:13.8]} 21. Ne7+ {[%clk 0:02:07.6]} 21... Kf8 {[%clk 0:02:11.6]}
22. Nxc8 {[%clk 0:02:06.8]} 22... Qxc8 {[%clk 0:02:10.6]} 23. Qd4 {[%clk
0:02:02.4]} 23... Qc7 {[%clk 0:02:07.6]} 24. g3 {[%clk 0:01:58.7]} 24... Nd7
{[%clk 0:01:59.2]} 25. Re3 {[%clk 0:01:31.2]} 25... Nc5 {[%clk 0:01:51.9]} 26.
Rae1 {[%clk 0:01:27.3]} 26... Ne6 {[%clk 0:01:51.8]} 27. Qxa7 {[%clk 0:01:19.2]}
27... g6 {[%clk 0:01:49.5]} 28. Rxe6 {[%clk 0:01:14.3]} 28... fxe6 {[%clk
0:01:47.2]} 29. Rxe6 {[%clk 0:01:14.2]} 29... Re5 {[%clk 0:01:45.6]} 30. Rxe5
{[%clk 0:01:00.6]} 30... Qxe5 {[%clk 0:01:46.5]} 31. Qa8+ {[%clk 0:01:00.6]}
31... Kg7 {[%clk 0:01:44.7]} 32. Qxb7+ {[%clk 0:01:00.6]} 32... Kh6 {[%clk
0:01:45.2]} 33. Qb6 {[%clk 0:00:55.1]} 33... Qe1+ {[%clk 0:01:43.6]} 34. Kg2
{[%clk 0:00:54.4]} 34... Qe2+ {[%clk 0:01:43.9]} 35. Qf2 {[%clk 0:00:53.9]}
35... Qc4 {[%clk 0:01:44.3]} 36. Qd2+ {[%clk 0:00:50.8]} 36... g5 {[%clk
0:01:43.1]} 37. h4 {[%clk 0:00:48.9]} 37... Kg7 {[%clk 0:01:35.8]} 38. Qxg5+
{[%clk 0:00:48.6]} 38... Kf7 {[%clk 0:01:36.3]} 39. Qf5+ {[%clk 0:00:48.1]}
39... Kg7 {[%clk 0:01:36.3]} 40. Qg5+ {[%clk 0:00:45.2]} 40... Kf7 {[%clk
0:01:36.6]} 41. Qd2 {[%clk 0:00:43.5]} 41... Qxa2 {[%clk 0:01:35.8]} 42. g4
{[%clk 0:00:42.1]} 42... Qb1 {[%clk 0:01:28.1]} 43. Qxd5+ {[%clk 0:00:40]} 43...
Kf8 {[%clk 0:01:27.6]} 44. Qd2 {[%clk 0:00:38.6]} 44... Qg6 {[%clk 0:01:24.7]}
45. h5 {[%clk 0:00:38.3]} 45... Qe6 {[%clk 0:01:20.5]} 46. b4 {[%clk 0:00:37.9]}
1-0

[Event "*** Titled Tuesday Blitz"]
[Site "Chess.com"]
[Date "2020.04.07"]
[Round "6"]
[White "aloe_normansen"]
[Black "Alex_Terzi"]
[Result "0-1"]
[WhiteElo "2179"]
[BlackElo "2406"]
[TimeControl "180+1"]
[EndTime "14:06:39 PDT"]
[Termination "Alex_Terzi won by resignation"]

1. e4 {[%clk 0:03:00.9]} 1... c5 {[%clk 0:02:58.8]} 2. Nf3 {[%clk 0:03:00.5]}
2... Nc6 {[%clk 0:02:59.4]} 3. d4 {[%clk 0:03:00.5]} 3... cxd4 {[%clk
0:03:00.3]} 4. Nxd4 {[%clk 0:03:01]} 4... g6 {[%clk 0:03:00.8]} 5. Nc3 {[%clk
0:03:00.6]} 5... Bg7 {[%clk 0:03:01.1]} 6. Be3 {[%clk 0:03:00.8]} 6... Nf6
{[%clk 0:03:01.6]} 7. Nxc6 {[%clk 0:03:00.3]} 7... bxc6 {[%clk 0:03:00.4]} 8. e5
{[%clk 0:03:00.3]} 8... Ng8 {[%clk 0:03:00.6]} 9. Bd4 {[%clk 0:03:00.3]} 9...
Nh6 {[%clk 0:02:44.9]} 10. e6 {[%clk 0:02:58.7]} 10... O-O {[%clk 0:02:44.6]}
11. Bxg7 {[%clk 0:02:57.1]} 11... Kxg7 {[%clk 0:02:45.5]} 12. Qd4+ {[%clk
0:02:57.3]} 12... f6 {[%clk 0:02:41.2]} 13. exd7 {[%clk 0:02:55.7]} 13... Qxd7
{[%clk 0:02:37.1]} 14. Qxd7 {[%clk 0:02:53.9]} 14... Bxd7 {[%clk 0:02:38]} 15.
O-O-O {[%clk 0:02:53.9]} 15... Be6 {[%clk 0:02:36.2]} 16. Be2 {[%clk 0:02:52.3]}
16... Rfd8 {[%clk 0:02:33.9]} 17. Bf3 {[%clk 0:02:48.1]} 17... Rac8 {[%clk
0:02:26.5]} 18. Rxd8 {[%clk 0:02:36.7]} 18... Rxd8 {[%clk 0:02:27.4]} 19. Bxc6
{[%clk 0:02:36.5]} 19... Ng4 {[%clk 0:02:27.5]} 20. Nd1 {[%clk 0:02:15.8]} 20...
Bxa2 {[%clk 0:02:21.5]} 21. b3 {[%clk 0:02:07.3]} 21... Bxb3 {[%clk 0:02:17.8]}
22. cxb3 {[%clk 0:01:51.5]} 22... Rc8 {[%clk 0:02:17.2]} 23. h3 {[%clk
0:01:41.9]} 23... Rxc6+ {[%clk 0:02:16.6]} 24. Kb2 {[%clk 0:01:41.5]} 24... Ne5
{[%clk 0:02:15.6]} 25. f3 {[%clk 0:01:31.2]} 25... Nd3+ {[%clk 0:02:13.5]} 26.
Ka2 {[%clk 0:01:19.8]} 26... Rc2+ {[%clk 0:02:11.3]} 27. Kb1 {[%clk 0:01:16.9]}
27... Rxg2 {[%clk 0:01:48.7]} 28. Ne3 {[%clk 0:01:14.8]} 28... Rb2+ {[%clk
0:01:48.3]} 29. Ka1 {[%clk 0:01:14.9]} 29... Rxb3 {[%clk 0:01:48.5]} 30. Rd1
{[%clk 0:01:13]} 30... Ne5 {[%clk 0:01:46.1]} 31. Nd5 {[%clk 0:01:10.1]} 31...
Rxf3 {[%clk 0:01:45.8]} 32. Nxe7 {[%clk 0:01:09]} 32... Rxh3 {[%clk 0:01:45.6]}
33. Nc8 {[%clk 0:01:07.3]} 33... a5 {[%clk 0:01:44.3]} 34. Nd6 {[%clk
0:01:05.1]} 34... a4 {[%clk 0:01:42.7]} 35. Rd4 {[%clk 0:00:58]} 35... a3 {[%clk
0:01:42]} 36. Ka2 {[%clk 0:00:58]} 36... h5 {[%clk 0:01:41.9]} 37. Rf4 {[%clk
0:00:55.9]} 37... Rf3 {[%clk 0:01:38.7]} 38. Rh4 {[%clk 0:00:46.9]} 38... Kh6
{[%clk 0:01:34.3]} 39. Nb5 {[%clk 0:00:44.7]} 39... g5 {[%clk 0:01:32]} 40. Rh1
{[%clk 0:00:43.2]} 40... Nc4 {[%clk 0:01:31.8]} 41. Rc1 {[%clk 0:00:41.3]} 41...
Rf4 {[%clk 0:01:19.7]} 0-1

[Event "*** Titled Tuesday Blitz"]
[Site "Chess.com"]
[Date "2020.04.07"]
[Round "6"]
[White "ehrenfeld"]
[Black "PawnEatingZombie"]
[Result "1-0"]
[WhiteElo "2413"]
[BlackElo "2127"]
[TimeControl "180+1"]
[EndTime "14:06:40 PDT"]
[Termination "ehrenfeld won on time"]

1. e4 {[%clk 0:03:00.9]} 1... c6 {[%clk 0:02:59.6]} 2. d4 {[%clk 0:03:00.5]}
2... d5 {[%clk 0:02:59.9]} 3. exd5 {[%clk 0:03:00.5]} 3... cxd5 {[%clk
0:02:59.5]} 4. Bd3 {[%clk 0:03:00.5]} 4... Nc6 {[%clk 0:02:58.9]} 5. c3 {[%clk
0:03:00.7]} 5... Qc7 {[%clk 0:02:58.4]} 6. Ne2 {[%clk 0:02:53.6]} 6... Bg4
{[%clk 0:02:57.5]} 7. O-O {[%clk 0:02:53]} 7... e6 {[%clk 0:02:56.7]} 8. Qe1
{[%clk 0:02:51.1]} 8... Nf6 {[%clk 0:02:53.7]} 9. Bf4 {[%clk 0:02:45.1]} 9...
Bd6 {[%clk 0:02:51.7]} 10. Bxd6 {[%clk 0:02:44.1]} 10... Qxd6 {[%clk 0:02:51.4]}
11. Nd2 {[%clk 0:02:42.8]} 11... O-O {[%clk 0:02:47.4]} 12. f4 {[%clk
0:02:41.6]} 12... Bh5 {[%clk 0:02:18]} 13. Ng3 {[%clk 0:02:36.7]} 13... Bg6
{[%clk 0:02:16.1]} 14. f5 {[%clk 0:02:36.7]} 14... exf5 {[%clk 0:02:15]} 15.
Nxf5 {[%clk 0:02:36.1]} 15... Bxf5 {[%clk 0:02:14.5]} 16. Rxf5 {[%clk
0:02:33.3]} 16... Rae8 {[%clk 0:02:04.3]} 17. Qh4 {[%clk 0:02:32.5]} 17... h6
{[%clk 0:01:30.6]} 18. Raf1 {[%clk 0:02:31.1]} 18... Nh7 {[%clk 0:01:24]} 19.
Qf2 {[%clk 0:02:24.7]} 19... Re7 {[%clk 0:01:16]} 20. Qf3 {[%clk 0:02:19.8]}
20... Rd7 {[%clk 0:01:11.8]} 21. Nb3 {[%clk 0:02:15.5]} 21... Ng5 {[%clk
0:01:04.1]} 22. Qh5 {[%clk 0:01:42.5]} 22... Ne4 {[%clk 0:00:58.6]} 23. Qf3
{[%clk 0:01:19.2]} 23... Re7 {[%clk 0:00:50.6]} 24. Rf4 {[%clk 0:01:13.4]} 24...
Ng5 {[%clk 0:00:36.1]} 25. Qf2 {[%clk 0:01:13]} 25... Ne4 {[%clk 0:00:32.7]} 26.
Qc2 {[%clk 0:01:08.7]} 26... Rfe8 {[%clk 0:00:13.7]} 27. Nd2 {[%clk 0:01:05.8]}
27... Nxd2 {[%clk 0:00:11.6]} 28. Qxd2 {[%clk 0:01:05.6]} 28... Nd8 {[%clk
0:00:08.7]} 29. Qf2 {[%clk 0:01:02.8]} 29... Qb6 {[%clk 0:00:03.6]} 30. Rf5
{[%clk 0:00:58.9]} 1-0

[Event "*** Titled Tuesday Blitz"]
[Site "Chess.com"]
[Date "2020.04.07"]
[Round "6"]
[White "BogdanDeac"]
[Black "boasovietica"]
[Result "1-0"]
[WhiteElo "2618"]
[BlackElo "2436"]
[TimeControl "180+1"]
[EndTime "14:06:41 PDT"]
[Termination "BogdanDeac won on time"]

1. Nf3 {[%clk 0:03:00.9]} 1... c5 {[%clk 0:02:56.7]} 2. e4 {[%clk 0:02:59.5]}
2... g6 {[%clk 0:02:53.6]} 3. d4 {[%clk 0:02:56.8]} 3... cxd4 {[%clk 0:02:53.4]}
4. Nxd4 {[%clk 0:02:52.4]} 4... Bg7 {[%clk 0:02:52.7]} 5. c4 {[%clk 0:02:52]}
5... Nc6 {[%clk 0:02:51.8]} 6. Be3 {[%clk 0:02:49.9]} 6... Nf6 {[%clk
0:02:51.7]} 7. Nc3 {[%clk 0:02:45]} 7... Nxd4 {[%clk 0:02:51.7]} 8. Bxd4 {[%clk
0:02:41.4]} 8... d6 {[%clk 0:02:51.7]} 9. Be2 {[%clk 0:02:40.9]} 9... O-O {[%clk
0:02:50.8]} 10. O-O {[%clk 0:02:40.4]} 10... Bd7 {[%clk 0:02:51.2]} 11. b4
{[%clk 0:02:39]} 11... a6 {[%clk 0:02:37.1]} 12. f3 {[%clk 0:02:34.8]} 12... Rc8
{[%clk 0:02:36]} 13. Rc1 {[%clk 0:02:31.1]} 13... Be6 {[%clk 0:02:16.4]} 14. Na4
{[%clk 0:02:29]} 14... Nd7 {[%clk 0:02:13.9]} 15. Bxg7 {[%clk 0:02:24.5]} 15...
Kxg7 {[%clk 0:02:13.8]} 16. Qd4+ {[%clk 0:02:23.9]} 16... Kg8 {[%clk 0:02:13.6]}
17. f4 {[%clk 0:02:22.5]} 17... b5 {[%clk 0:02:01.5]} 18. cxb5 {[%clk 0:02:12]}
18... axb5 {[%clk 0:02:01.5]} 19. Bxb5 {[%clk 0:02:07]} 19... Rb8 {[%clk
0:01:47.1]} 20. Nc3 {[%clk 0:01:54.6]} 20... f5 {[%clk 0:01:09.1]} 21. exf5
{[%clk 0:01:51.7]} 21... Rxf5 {[%clk 0:01:02.1]} 22. Rfe1 {[%clk 0:01:49.6]}
22... Nf8 {[%clk 0:00:44.7]} 23. Bd3 {[%clk 0:01:45.2]} 23... Rf7 {[%clk
0:00:40.8]} 24. a4 {[%clk 0:01:44.4]} 24... Bd7 {[%clk 0:00:24]} 25. Bc4 {[%clk
0:01:38.7]} 25... e6 {[%clk 0:00:23.8]} 26. Qxd6 {[%clk 0:01:36.2]} 26... Rb6
{[%clk 0:00:18.9]} 27. Qc5 {[%clk 0:01:24.2]} 27... Rxf4 {[%clk 0:00:08]} 28. b5
{[%clk 0:01:23.6]} 28... Rb8 {[%clk 0:00:06.7]} 29. Ne4 {[%clk 0:01:18]} 29...
Rc8 {[%clk 0:00:05.6]} 30. Qe3 {[%clk 0:01:14.8]} 30... Rf5 {[%clk 0:00:04.4]}
31. Nd6 {[%clk 0:01:14.3]} 1-0

[Event "*** Titled Tuesday Blitz"]
[Site "Chess.com"]
[Date "2020.04.07"]
[Round "6"]
[White "ckgchess"]
[Black "Tjktiger"]
[Result "0-1"]
[WhiteElo "2629"]
[BlackElo "2855"]
[TimeControl "180+1"]
[EndTime "14:06:42 PDT"]
[Termination "Tjktiger won on time"]

1. e4 {[%clk 0:03:00.9]} 1... c5 {[%clk 0:03:00.1]} 2. c3 {[%clk 0:03:00.4]}
2... d5 {[%clk 0:02:59.4]} 3. exd5 {[%clk 0:03:00.7]} 3... Qxd5 {[%clk
0:03:00.3]} 4. d4 {[%clk 0:03:01.6]} 4... g6 {[%clk 0:03:00.6]} 5. Nf3 {[%clk
0:02:59.8]} 5... Bg7 {[%clk 0:03:00.9]} 6. Na3 {[%clk 0:02:57.8]} 6... cxd4
{[%clk 0:03:00.9]} 7. Nb5 {[%clk 0:02:56.3]} 7... Na6 {[%clk 0:03:01.3]} 8.
Nbxd4 {[%clk 0:02:47.4]} 8... Nf6 {[%clk 0:03:01.3]} 9. Bb5+ {[%clk 0:02:46.6]}
9... Bd7 {[%clk 0:03:01.5]} 10. Bxd7+ {[%clk 0:02:46.9]} 10... Nxd7 {[%clk
0:02:56.1]} 11. O-O {[%clk 0:02:47.8]} 11... O-O {[%clk 0:02:55.9]} 12. Qe2
{[%clk 0:02:39.5]} 12... e5 {[%clk 0:02:49.9]} 13. Nb3 {[%clk 0:02:36]} 13... e4
{[%clk 0:02:46.3]} 14. Ng5 {[%clk 0:02:31.9]} 14... Rfe8 {[%clk 0:02:39.8]} 15.
Rd1 {[%clk 0:02:31.7]} 15... Qc6 {[%clk 0:02:28.2]} 16. Bf4 {[%clk 0:02:29.3]}
16... h6 {[%clk 0:02:09.4]} 17. Rd6 {[%clk 0:02:27.6]} 17... Qa4 {[%clk
0:02:09.2]} 18. Rad1 {[%clk 0:01:21.5]} 18... hxg5 {[%clk 0:02:04.5]} 19. Bxg5
{[%clk 0:01:12.7]} 19... Ndc5 {[%clk 0:02:01.5]} 20. Nd4 {[%clk 0:01:10.5]}
20... Nd3 {[%clk 0:01:49.3]} 21. Bf6 {[%clk 0:01:04.1]} 21... Nxb2 {[%clk
0:01:28.5]} 22. Rb1 {[%clk 0:00:59.8]} 22... Nc4 {[%clk 0:01:21.5]} 23. Bxg7
{[%clk 0:00:55.9]} 23... Kxg7 {[%clk 0:01:22.4]} 24. Rxg6+ {[%clk 0:00:29.6]}
24... fxg6 {[%clk 0:01:10.7]} 25. Rxb7+ {[%clk 0:00:28.9]} 25... Kg8 {[%clk
0:01:10.7]} 26. Qg4 {[%clk 0:00:27.7]} 26... Ne5 {[%clk 0:01:10.5]} 0-1

[Event "*** Titled Tuesday Blitz"]
[Site "Chess.com"]
[Date "2020.04.07"]
[Round "6"]
[White "SlavenPastar"]
[Black "Misi_95"]
[Result "0-1"]
[WhiteElo "2507"]
[BlackElo "2699"]
[TimeControl "180+1"]
[EndTime "14:06:43 PDT"]
[Termination "Misi_95 won by checkmate"]

1. d4 {[%clk 0:03:00.9]} 1... g6 {[%clk 0:02:58.9]} 2. c4 {[%clk 0:03:00.1]}
2... Bg7 {[%clk 0:02:58.6]} 3. Nc3 {[%clk 0:03:00.4]} 3... Nf6 {[%clk
0:02:56.9]} 4. Bg5 {[%clk 0:03:00.9]} 4... O-O {[%clk 0:02:56]} 5. e3 {[%clk
0:03:01.3]} 5... d6 {[%clk 0:02:55.9]} 6. Nf3 {[%clk 0:03:01.8]} 6... Bf5 {[%clk
0:02:55.7]} 7. Be2 {[%clk 0:03:00.9]} 7... Nbd7 {[%clk 0:02:54.3]} 8. O-O {[%clk
0:03:00.7]} 8... c5 {[%clk 0:02:53.7]} 9. d5 {[%clk 0:03:00.3]} 9... Ne4 {[%clk
0:02:53.6]} 10. Nxe4 {[%clk 0:02:53.2]} 10... Bxe4 {[%clk 0:02:53.8]} 11. Qd2
{[%clk 0:02:50.3]} 11... h6 {[%clk 0:02:51]} 12. Bh4 {[%clk 0:02:49.9]} 12... a6
{[%clk 0:02:50]} 13. Rfd1 {[%clk 0:02:32.7]} 13... Rb8 {[%clk 0:02:49.3]} 14.
Ne1 {[%clk 0:02:29.4]} 14... g5 {[%clk 0:02:48.1]} 15. Bg3 {[%clk 0:02:29.6]}
15... b5 {[%clk 0:02:47.6]} 16. f3 {[%clk 0:02:21.2]} 16... Bg6 {[%clk
0:02:47.2]} 17. cxb5 {[%clk 0:02:12.5]} 17... axb5 {[%clk 0:02:47]} 18. a3
{[%clk 0:02:10.8]} 18... c4 {[%clk 0:02:44.3]} 19. Rdc1 {[%clk 0:01:49.2]} 19...
Nc5 {[%clk 0:02:43.1]} 20. Bd1 {[%clk 0:01:47.9]} 20... Na4 {[%clk 0:02:27.3]}
21. Ra2 {[%clk 0:01:43]} 21... Qb6 {[%clk 0:02:13.7]} 22. Bf2 {[%clk 0:01:21.2]}
22... Rfc8 {[%clk 0:02:12.8]} 23. Bc2 {[%clk 0:01:20.6]} 23... Bxc2 {[%clk
0:02:08.6]} 24. Nxc2 {[%clk 0:01:11.5]} 24... Nxb2 {[%clk 0:02:04.7]} 25. e4
{[%clk 0:00:59.6]} 25... Qc7 {[%clk 0:02:00]} 26. Bd4 {[%clk 0:00:52.8]} 26...
Nd3 {[%clk 0:01:59.4]} 27. Rb1 {[%clk 0:00:47.4]} 27... Bxd4+ {[%clk 0:01:56.9]}
28. Nxd4 {[%clk 0:00:48.3]} 28... Qc5 {[%clk 0:01:56.3]} 29. Qe3 {[%clk
0:00:47.4]} 29... b4 {[%clk 0:01:51.5]} 30. axb4 {[%clk 0:00:46]} 30... Rxb4
{[%clk 0:01:52.4]} 31. Rxb4 {[%clk 0:00:40.5]} 31... Qxb4 {[%clk 0:01:53.3]} 32.
Ra1 {[%clk 0:00:33.4]} 32... Qc5 {[%clk 0:01:47.6]} 33. h4 {[%clk 0:00:32.7]}
33... f6 {[%clk 0:01:45.4]} 34. Kh2 {[%clk 0:00:29.8]} 34... Ne5 {[%clk
0:01:41.4]} 35. Qc3 {[%clk 0:00:24.2]} 35... Rb8 {[%clk 0:01:35.8]} 36. Nf5
{[%clk 0:00:22.5]} 36... Qf2 {[%clk 0:01:30.8]} 37. Nxh6+ {[%clk 0:00:19.4]}
37... Kh7 {[%clk 0:01:29.2]} 38. Nf5 {[%clk 0:00:19.5]} 38... Rb2 {[%clk
0:01:28.2]} 39. Rg1 {[%clk 0:00:16.1]} 39... gxh4 {[%clk 0:01:27]} 40. Kh3
{[%clk 0:00:08.6]} 40... Qxg1 {[%clk 0:01:23.3]} 41. Qxb2 {[%clk 0:00:05]} 41...
Qh1# {[%clk 0:01:23.1]} 0-1

[Event "*** Titled Tuesday Blitz"]
[Site "Chess.com"]
[Date "2020.04.07"]
[Round "6"]
[White "GM-AndreyOrlov"]
[Black "diskeleven"]
[Result "0-1"]
[WhiteElo "2620"]
[BlackElo "2377"]
[TimeControl "180+1"]
[EndTime "14:06:44 PDT"]
[Termination "diskeleven won by resignation"]

1. e4 {[%clk 0:03:00.9]} 1... c5 {[%clk 0:03:00]} 2. Nc3 {[%clk 0:03:01]} 2...
a6 {[%clk 0:02:59.8]} 3. g3 {[%clk 0:03:00.2]} 3... b5 {[%clk 0:03:00]} 4. Bg2
{[%clk 0:03:00.8]} 4... Bb7 {[%clk 0:03:00.5]} 5. d3 {[%clk 0:03:00.6]} 5... e6
{[%clk 0:03:00.6]} 6. f4 {[%clk 0:03:00.4]} 6... d5 {[%clk 0:03:00]} 7. e5
{[%clk 0:03:00]} 7... h5 {[%clk 0:02:59.5]} 8. Nf3 {[%clk 0:03:00.1]} 8... Nh6
{[%clk 0:02:59.6]} 9. O-O {[%clk 0:02:59.9]} 9... Nf5 {[%clk 0:02:59.8]} 10. Ne2
{[%clk 0:02:52.7]} 10... Be7 {[%clk 0:02:59.6]} 11. h4 {[%clk 0:02:52.2]} 11...
Nc6 {[%clk 0:02:56.1]} 12. Kh2 {[%clk 0:02:51]} 12... Qb6 {[%clk 0:02:52.7]} 13.
Neg1 {[%clk 0:02:50.3]} 13... Nh6 {[%clk 0:02:50.1]} 14. Nh3 {[%clk 0:02:50.6]}
14... Ng4+ {[%clk 0:02:50.2]} 15. Kh1 {[%clk 0:02:50.9]} 15... O-O-O {[%clk
0:02:48.3]} 16. c3 {[%clk 0:02:50.6]} 16... d4 {[%clk 0:02:46.6]} 17. c4 {[%clk
0:02:49.7]} 17... bxc4 {[%clk 0:02:40.8]} 18. dxc4 {[%clk 0:02:50.6]} 18... Ne3
{[%clk 0:02:36.6]} 19. Bxe3 {[%clk 0:02:46.1]} 19... dxe3 {[%clk 0:02:36.2]} 20.
Qe2 {[%clk 0:02:46.4]} 20... Nd4 {[%clk 0:02:34.4]} 21. Nxd4 {[%clk 0:02:33.6]}
21... cxd4 {[%clk 0:02:34.3]} 22. Rfd1 {[%clk 0:02:28.8]} 22... Bxg2+ {[%clk
0:02:24.3]} 23. Kxg2 {[%clk 0:02:29.7]} 23... d3 {[%clk 0:02:19.7]} 24. Qf3
{[%clk 0:02:11.8]} 24... Qxb2+ {[%clk 0:02:13]} 25. Kg1 {[%clk 0:02:10.7]} 25...
e2 {[%clk 0:01:48.3]} 26. Rdb1 {[%clk 0:02:10.7]} 26... Qd4+ {[%clk 0:01:04.1]}
27. Nf2 {[%clk 0:02:07]} 27... Kd7 {[%clk 0:00:30.7]} 28. Rb7+ {[%clk
0:01:40.5]} 28... Ke8 {[%clk 0:00:30.8]} 29. Qc6+ {[%clk 0:01:40.8]} 29... Kf8
{[%clk 0:00:31]} 30. Re1 {[%clk 0:01:20.6]} 30... Bc5 {[%clk 0:00:29]} 0-1

[Event "*** Titled Tuesday Blitz"]
[Site "Chess.com"]
[Date "2020.04.07"]
[Round "6"]
[White "SergioGarciaFuentes"]
[Black "Rubinstein_Akiba"]
[Result "0-1"]
[WhiteElo "2192"]
[BlackElo "2349"]
[TimeControl "180+1"]
[EndTime "14:06:45 PDT"]
[Termination "Rubinstein_Akiba won by resignation"]

1. Nf3 {[%clk 0:03:00.9]} 1... c5 {[%clk 0:03:00.9]} 2. g3 {[%clk 0:03:00.3]}
2... d5 {[%clk 0:03:00.5]} 3. Bg2 {[%clk 0:02:59.8]} 3... Nc6 {[%clk 0:03:01.4]}
4. d4 {[%clk 0:02:59.9]} 4... Nf6 {[%clk 0:03:02.3]} 5. O-O {[%clk 0:02:59.2]}
5... cxd4 {[%clk 0:03:02.6]} 6. Nxd4 {[%clk 0:02:59.2]} 6... e5 {[%clk
0:03:02.9]} 7. Nxc6 {[%clk 0:02:59.8]} 7... bxc6 {[%clk 0:03:03.7]} 8. c4 {[%clk
0:03:00.2]} 8... Be6 {[%clk 0:03:03.7]} 9. Nc3 {[%clk 0:03:00.1]} 9... Rc8
{[%clk 0:02:57.4]} 10. cxd5 {[%clk 0:02:40.7]} 10... cxd5 {[%clk 0:02:55.9]} 11.
Qa4+ {[%clk 0:02:38.7]} 11... Qd7 {[%clk 0:02:55.8]} 12. Qxd7+ {[%clk
0:02:37.5]} 12... Kxd7 {[%clk 0:02:55.6]} 13. Rd1 {[%clk 0:02:36.9]} 13... d4
{[%clk 0:02:53.8]} 14. e3 {[%clk 0:02:31.4]} 14... Bc5 {[%clk 0:02:52.5]} 15.
Na4 {[%clk 0:02:13.4]} 15... Bd5 {[%clk 0:02:03.8]} 16. Nxc5+ {[%clk 0:02:10.1]}
16... Rxc5 {[%clk 0:02:02.8]} 17. exd4 {[%clk 0:02:10.5]} 17... exd4 {[%clk
0:02:02.7]} 18. Rxd4 {[%clk 0:02:02.8]} 18... Re8 {[%clk 0:01:52.6]} 19. Be3
{[%clk 0:01:39.5]} 19... Kc6 {[%clk 0:01:50.6]} 20. Rxd5 {[%clk 0:01:17.3]}
20... Rxd5 {[%clk 0:01:48.6]} 21. Bxa7 {[%clk 0:01:00.7]} 21... Ne4 {[%clk
0:01:38.7]} 22. Be3 {[%clk 0:00:51]} 22... f5 {[%clk 0:01:14.4]} 23. a4 {[%clk
0:00:48.8]} 23... Rb8 {[%clk 0:01:03.2]} 24. a5 {[%clk 0:00:41]} 24... Kb7
{[%clk 0:01:00.2]} 25. a6+ {[%clk 0:00:30.6]} 25... Ka8 {[%clk 0:00:59.1]} 26.
Ra4 {[%clk 0:00:26.5]} 26... Rd1+ {[%clk 0:00:49.1]} 27. Bf1 {[%clk 0:00:25.1]}
27... Rxb2 {[%clk 0:00:45.2]} 28. Kh1 {[%clk 0:00:14.4]} 0-1